Cogmind - Beta 11 X7 @@@ ROGUE MODE // 2021.08.29 @ 00:39:31 Player: AlmondRoll Result: Destroyed by P-80 Master with Gamma Rifle Performance ------------- Evolutions (9) 4500 Regions Visited (22) 4400 Robots Destroyed (100) 500 Value Destroyed (2135) 2135 Prototype IDs (91) 1820 Alien Tech Used (0) 0 Bonus (8349) 8349 TOTAL SCORE: 21704 Bonus ------- High Alert Combat Kills 19 Follower Combat Kills 282 Aligned with FarCom 300 Met Warlord at Base 500 MAIN.C Attacked Warlord 500 Met MAIN.C 5000 Met Warlord at Command 2000 Friendly Fire -252 Cogmind --------- Core Integrity 0/1600 Matter 290/300 Energy 32/100 System Corruption 28% Temperature Cool (0) Movement Core (50) Location -1/Command Parts ------- > --- POWER (1) -------- (None) > --- PROPULSION (6) --- Electron Diverter > --- UTILITY (16) ----- Makeshift System Shield Improved System Shield > --- WEAPON (2) ------- (None) > --- INVENTORY (5) ---- Light Quantum Reactor Peak State ------------ > --- POWER ------------ Light Quantum Reactor > --- PROPULSION ------- Impulse Thruster Cooled Field Propulsion Drive Cooled Field Propulsion Drive Diametric Drive Electron Diverter Electron Diverter > --- UTILITY ---------- Improved Fusion Compressor Experimental Power Amplifier Advanced Cooling System Coolant Network Advanced Weight Redist. System Experimental Target Analyzer Advanced Armor Integrity Analyzer Microactuators Advanced Actuator Array Reaction Control System Experimental Phase Shifter Improved Hacking Suite Advanced Hacking Suite Makeshift System Shield Improved System Shield > --- WEAPON ----------- Vortex Lance Vortex Lance > --- INVENTORY -------- Light Quantum Reactor Enhanced Force Lance [Rating: 185] Favorites ----------- Power Light Fission Core Engine Light Ion Engine Power Core Light Fission Core Reactor Light Quantum Reactor Propulsion Cooled VTOL Module Leg Aluminum Leg Wheel Wheel Hover Unit Aerolev Unit Flight Unit Cooled VTOL Module Utility Hacking Suite Device Improved Heat Sink Storage High-capacity Storage Unit Processor Machine Analyzer Hackware Hacking Suite Protection Heavy Armor Plating Weapon Longsword +1 Energy Gun Beamcaster Energy Cannon Compact HERF Cannon Ballistic Gun Heavy Battle Rifle Ballistic Cannon Bore Cannon Launcher Rocket Launcher Slashing Weapon Longsword +1 Piercing Weapon Lance Build | -11 -10 -10 -9 -9 -9 -8 -8 -7 -7 -7 -6 -6 -5 -5 -5 -5 -4 -4 -3 -2 -1 -1 ------- Run | Scr Mat Min Mat Min Exi Min Mat Fac Was Fac Fac Ext Fac Upp Upp War Pro Fac Res Res Acc Com Slots Evolved 18 | . . . 2 . . . 2 2 . . 2 . 2 . . . . 2 2 2 2 . Power . | . . . . . . . . . . . . . . . . . . . . . . . Propulsion 4 | . . . . . . . . 2 . . 1 . 1 . . . . . . . . . Utility 14 | . . . 2 . . . 2 . . . 1 . 1 . . . . 2 2 2 2 . Weapon . | . . . . . . . . . . . . . . . . . . . . . . . Parts Attached 244 | 4 4 2 11 3 2 4 19 20 4 5 10 13 27 8 2 14 5 16 14 12 25 20 Power 21 | . 1 . 2 . . 1 1 4 . 1 2 1 3 . . . . . 2 1 1 1 Engine 3 | . 1 . 1 . . 1 . . . . . . . . . . . . . . . . Core 13 | . . . 1 . . . 1 4 . 1 2 1 3 . . . . . . . . . Reactor 5 | . . . . . . . . . . . . . . . . . . . 2 1 1 1 Propulsion 46 | 2 1 . 1 . . 1 4 11 . 4 1 1 5 . . 3 . 4 . 3 . 5 Treads . | . . . . . . . . . . . . . . . . . . . . . . . Leg . | . . . . . . . . . . . . . . . . . . . . . . . Wheel 8 | 2 1 . 1 . . 1 3 . . . . . . . . . . . . . . . Hover 7 | . . . . . . . 1 6 . . . . . . . . . . . . . . Flight 31 | . . . . . . . . 5 . 4 1 1 5 . . 3 . 4 . 3 . 5 Utility 117 | 1 1 . 3 . . 1 4 5 2 . 6 1 15 8 2 6 5 11 8 8 22 8 Device 66 | . . . 1 . . . 1 . 1 . 2 1 8 5 2 5 3 4 6 5 17 5 Storage 5 | . 1 . . . . . . 1 . . 1 . 1 . . . . . . . . 1 Processor 9 | 1 . . . . . . . 1 . . . . 2 . . 1 . 1 . . 2 1 Hackware 14 | . . . . . . . 2 3 1 . . . 1 . . . . 4 1 2 . . Protection 23 | . . . 2 . . 1 1 . . . 3 . 3 3 . . 2 2 1 1 3 1 Artifact . | . . . . . . . . . . . . . . . . . . . . . . . Weapon 60 | 1 1 2 5 3 2 1 10 . 2 . 1 10 4 . . 5 . 1 4 . 2 6 Energy Gun 4 | 1 . . . . . 1 1 . . . . . . . . 1 . . . . . . Energy Cannon 4 | . . . . . . . . . . . . . 1 . . 1 . . 1 . 1 . Ballistic Gun 14 | . 1 2 3 2 1 . 5 . . . . . . . . . . . . . . . Ballistic Cannon 1 | . . . . . . . . . . . . 1 . . . . . . . . . . Launcher 10 | . . . 2 1 . . 1 . . . . 4 . . . 1 . . 1 . . . Special Weapon . | . . . . . . . . . . . . . . . . . . . . . . . Impact Weapon . | . . . . . . . . . . . . . . . . . . . . . . . Slashing Weapon 8 | . . . . . 1 . 3 . 1 . . 2 . . . 1 . . . . . . Piercing Weapon 19 | . . . . . . . . . 1 . 1 3 3 . . 1 . 1 2 . 1 6 Special Melee Weapon . | . . . . . . . . . . . . . . . . . . . . . . . Unidentified Prototypes 22 | . . . 1 . . . 1 2 1 . . . 2 . . 9 . 1 3 2 . . Parts Lost 40 | . . 1 2 1 . 1 . 1 . . . 2 1 . . . . 3 . 2 1 25 Power 4 | . . . . . . . . . . . . 1 . . . . . 1 . 1 . 1 Propulsion 9 | . . . . . . 1 . . . . . 1 . . . . . . . 1 . 6 Utility 19 | . . . 1 . . . . 1 . . . . . . . . . 1 . . 1 15 Weapon 8 | . . 1 1 1 . . . . . . . . 1 . . . . 1 . . . 3 Highest Loss Streak 25 | . . 1 1 1 . 1 . 1 . . . 1 1 . . . . 2 . 1 1 25 Average Slot Usage (%) 93 | . 100 100 86 87 74 81 89 99 94 99 98 99 99 94 94 93 94 92 89 90 89 89 Engine 3 | . 14 14 7 11 11 11 5 . . . . . . . . . . . . . . . Core 3 | . . . 3 . . . 3 6 7 6 6 5 5 5 5 5 5 4 . . . . Wheel 8 | . 28 28 22 22 22 15 17 . . . . . . . . . . . . . . . Flight 18 | . . . . . . . . 15 30 30 33 33 34 35 35 35 35 30 28 26 24 21 Device 6 | . . . 9 11 11 11 9 . . . . . 4 9 11 11 10 10 14 12 13 20 Storage 7 | . 14 14 11 11 11 11 9 7 7 7 6 6 5 5 5 5 5 5 4 4 4 3 Processor 6 | . 14 14 1 . . . . 6 7 7 6 6 5 5 5 6 11 10 9 8 10 10 Hackware 18 | . . . . . . . 17 29 24 30 26 26 27 23 23 21 17 24 22 30 28 24 Protection 3 | . . . 9 11 11 11 9 . . . 5 5 1 1 . . . . . . 1 . Ballistic Gun 5 | . 27 28 21 21 1 1 5 . . . . . . . . . . . . . . . Slashing Weapon 5 | . . . . . 7 11 8 15 15 15 6 5 5 5 5 4 5 4 . . . . Piercing Weapon 1 | . . . . . . . . . . . 5 5 4 . . . . . 3 4 3 3 Naked Turns . | . . . . . . . . . . . . . . . . . . . . . . . Heaviest Build 74 | 10 46 49 69 71 71 73 74 21 20 20 25 25 36 32 32 36 36 38 51 50 55 54 Greatest Support 59 | 20 20 20 26 26 26 26 32 32 20 20 33 33 42 42 42 44 44 50 59 59 59 59 Greatest Overweight (x) 4 | . 2 2 3 2 2 4 4 1 . . . . . . . 1 . . . . . 1 Average Overweight (x) . | . 1 2 2 2 2 3 2 . . . . . . . . . . . . . . . Largest Inventory Capacity 20 | 8 20 20 20 20 20 20 20 20 10 10 10 10 15 15 15 15 15 15 15 15 15 15 Average Capacity 14 | 8 18 20 20 20 20 20 20 10 10 10 10 10 12 15 15 15 15 15 15 15 15 10 Most Carried 20 | 8 20 20 20 20 20 20 20 20 10 10 10 10 15 15 15 15 15 15 15 15 15 15 Average Carried 14 | 6 12 19 19 19 19 19 19 9 9 9 9 9 12 14 15 14 14 14 14 14 14 8 Final Capacity 20 | 8 20 20 20 20 20 20 20 10 10 10 10 10 15 15 15 15 15 15 15 15 15 5 Final Carried 20 | 8 20 20 20 20 20 20 20 10 10 10 10 10 14 15 15 15 15 15 15 14 14 1 Class Distribution -------------------- 32% | Hacker-Sprinter 16% | Scavenger-Mutant 14% | Mutant 12% | Hacker-Scout 9% | Hacker-Mutant 6% | Wizard-Scout 4% | Wizard-Sprinter Dominant Class ---------------- Mutant | -10/Materials Mutant | -10/Mines Scavenger-Mutant | -9/Materials Scavenger-Mutant | -9/Mines Mutant | -9/Exiles Scavenger-Mutant | -8/Mines Hacker-Mutant | -8/Materials Hacker-Sprinter | -7/Factory Hacker-Sprinter | -7/Waste Hacker-Sprinter | -7/Factory Hacker-Sprinter | -6/Factory Hacker-Sprinter | -6/Extension Hacker-Scout | -5/Factory Hacker-Sprinter | -5/Upper Caves Hacker-Sprinter | -5/Upper Caves Hacker-Sprinter | -5/Warlord Hacker-Sprinter | -4/Proximity Caves Hacker-Scout | -4/Factory Wizard-Scout | -3/Research Wizard-Sprinter | -2/Research Wizard-Scout | -1/Access Wizard-Sprinter | -1/Command Resources | -11 -10 -10 -9 -9 -9 -8 -8 -7 -7 -7 -6 -6 -5 -5 -5 -5 -4 -4 -3 -2 -1 -1 ----------- Run | Scr Mat Min Mat Min Exi Min Mat Fac Was Fac Fac Ext Fac Upp Upp War Pro Fac Res Res Acc Com Matter Collected 3993 | 236 101 237 524 111 . 93 343 31 209 10 390 161 180 187 . . 84 271 116 . 269 440 Remotely . | . . . . . . . . . . . . . . . . . . . . . . . Salvage Created 4664 | 118 182 118 765 88 . 254 900 31 41 53 416 458 305 . . . . 335 12 . 276 312 Parts 213 | 5 14 12 41 8 . 13 34 . 2 2 19 18 14 . . . . 5 3 . 12 11 Haulers Intercepted 12 | . . . 1 . . . 4 . . . 1 . 1 . . . . 3 . . 2 . Recyclers Shooed 8 | 1 1 . 3 . . . 2 . . . . . 1 . . . . . . . . . Parts Field Recycled . | . . . . . . . . . . . . . . . . . . . . . . . Retrieved Matter . | . . . . . . . . . . . . . . . . . . . . . . . Parts Self-Destructed . | . . . . . . . . . . . . . . . . . . . . . . . Prevented 3 | . . . . . . . . . . . . . . 2 . . 1 . . . . . Kills | -11 -10 -10 -9 -9 -9 -8 -8 -7 -7 -7 -6 -6 -5 -5 -5 -5 -4 -4 -3 -2 -1 -1 ------- Run | Scr Mat Min Mat Min Exi Min Mat Fac Was Fac Fac Ext Fac Upp Upp War Pro Fac Res Res Acc Com Combat Hostiles Destroyed 41 | . 5 2 15 5 . 3 6 . . . . 4 . . . . . . . . 1 . Melee 8 | . . . . . . 3 3 . . . . 1 . . . . . . . . 1 . Guns 21 | . 5 2 10 1 . . 3 . . . . . . . . . . . . . . . AOE 12 | . . . 5 4 . . . . . . . 3 . . . . . . . . . . Classes Destroyed 13 | 2 4 1 3 1 . . 1 . 1 . . . . . . . . . . . . . Worker 6 | . . 1 . . . 2 2 . . . . . 1 . . . . . . . . . Builder 5 | . 1 . . . . . 1 . . . . 2 . . . . . . 1 . . . Tunneler 5 | 1 . 1 . . . 3 . . . . . . . . . . . . . . . . Hauler 12 | . . . 1 . . . 4 . . . 1 . 1 . . . . 3 . . 2 . Recycler 15 | 1 . . 3 . . . 3 . . 1 2 3 . . . . . . . . . 2 Mechanic 4 | . . . 1 1 . . . . . . . . 1 . . . . . . . . 1 Watcher 11 | . 1 . . . . . 2 1 . . 1 1 5 . . . . . . . . . Swarmer 13 | . 3 . 3 4 . . . . . . . 3 . . . . . . . . . . Grunt 23 | . 2 2 10 . . 3 4 . . . . 1 . . . . . . . . 1 . Brawler 1 | . . . . 1 . . . . . . . . . . . . . . . . . . Sentry 3 | . . . 2 . . . 1 . . . . . . . . . . . . . . . Hunter 1 | . . . . . . . 1 . . . . . . . . . . . . . . . Martyr 1 | . . . . . . . . . 1 . . . . . . . . . . . . . Best Kill Streak 8 | 2 4 2 8 4 . 4 3 1 . 1 2 5 3 . . . . 3 1 . 1 2 Combat Bots Only 6 | . 3 2 6 4 . 3 2 . . . . 3 . . . . . . . . 1 . Max Kills in Single Turn 3 | 1 1 1 3 2 . 1 2 1 1 1 1 3 1 . . . . 1 1 . 1 1 Gunslinging . | . . . . . . . . . . . . . . . . . . . . . . . Exploded 3 | . . . 3 2 . . . . . . . 3 . . . . . . . . . . Melee 1 | . . . . . . 1 1 . . . . 1 . . . . . . . . 1 . Uniques/NPCs Destroyed . | . . . . . . . . . . . . . . . . . . . . . . . Combat | -11 -10 -10 -9 -9 -9 -8 -8 -7 -7 -7 -6 -6 -5 -5 -5 -5 -4 -4 -3 -2 -1 -1 -------- Run | Scr Mat Min Mat Min Exi Min Mat Fac Was Fac Fac Ext Fac Upp Upp War Pro Fac Res Res Acc Com Damage Taken 6652 | . 130 283 702 149 . 101 196 68 . . 56 409 198 . . . 27 183 70 216 496 3368 Core 2177 | . 38 85 62 . . . 36 . . . 28 168 33 . . . . 61 25 22 206 1413 Absorbed by Shields 68 | . . . . . . . . . . . . 68 . . . . . . . . . . Core Remaining (%) 88 | 100 . 50 . . . 84 93 . . 100 . 76 . . . . 96 94 98 98 . . Volleys Fired 152 | 6 14 21 59 9 . . 31 . . . . 8 4 . . . . . . . . . Largest 2 | 2 2 2 2 2 . . 2 . . . . 1 1 . . . . . . . . . Hottest 108 | 60 40 53 53 56 . . 108 . . . . 57 90 . . . . . . . . . Shots Fired 281 | 12 28 42 114 15 . 1 58 . . . . 8 3 . . . . . . . . . Gun 259 | 12 28 42 110 11 . 1 55 . . . . . . . . . . . . . . . Cannon 6 | . . . . . . . . . . . . 3 3 . . . . . . . . . Launcher 16 | . . . 4 4 . . 3 . . . . 5 . . . . . . . . . . Special . | . . . . . . . . . . . . . . . . . . . . . . . Kinetic 237 | 6 28 42 110 11 . . 37 . . . . 3 . . . . . . . . . . Thermal 28 | 6 . . . . . 1 18 . . . . . 3 . . . . . . . . . Explosive 16 | . . . 4 4 . . 3 . . . . 5 . . . . . . . . . . Electromagnetic . | . . . . . . . . . . . . . . . . . . . . . . . Robot Hit Streak 13 | 5 7 7 13 10 . . 8 . . . . 1 . . . . . . . . . . Robot Miss Streak 5 | 2 2 3 3 1 . 2 5 . . . . 1 . . . . . . . . . . Penetration Max . | . . . . . . . . . . . . . . . . . . . . . . . Secondary Targets . | . . . . . . . . . . . . . . . . . . . . . . . Shots Hit Robots 304 | 8 16 27 80 12 . 17 45 3 1 1 7 17 20 . . . . 11 1 . 10 28 Core Hits 142 | 3 11 8 34 8 . 9 22 1 1 1 5 12 8 . . . . 4 1 . 4 10 Critical Kills . | . . . . . . . . . . . . . . . . . . . . . . . Critical Parts Destroyed 3 | . . . 1 1 . . 1 . . . . . . . . . . . . . . . Critical Strikes 10 | . . . 1 1 . 1 2 . . . 2 1 . . . . . . . . 1 1 Burn 1 | . . . . . . . 1 . . . . . . . . . . . . . . . Destroy 3 | . . . 1 1 . . 1 . . . . . . . . . . . . . . . Sever 1 | . . . . . . 1 . . . . . . . . . . . . . . . . Puncture 5 | . . . . . . . . . . . 2 1 . . . . . . . . 1 1 Melee Attacks 301 | . . . . . . 17 40 21 1 10 28 26 34 2 1 2 5 29 15 3 22 45 Impact . | . . . . . . . . . . . . . . . . . . . . . . . Slashing 167 | . . . . . . 17 40 21 1 10 5 13 22 2 1 2 5 28 . . . . Piercing 106 | . . . . . . . . . . . 23 13 12 . . . . . 15 3 22 18 Entropic 28 | . . . . . . . . . . . . . . . . . . 1 . . . 27 Sneak Attacks 40 | . . . . . . 7 7 . 1 1 4 6 5 . . . . 2 1 . 3 3 Combat Hostiles . | . . . . . . . . . . . . . . . . . . . . . . . Follow-up Attacks 15 | . . . . . . . 3 1 . . 1 4 1 . . . . . . . . 5 Damage Inflicted 14794 | 75 181 322 1533 693 . 1316 2040 128 152 143 653 1392 1479 . . . . 711 235 . 1019 2722 Guns 2573 | 75 181 322 1258 162 . . 575 . . . . . . . . . . . . . . . Cannons . | . . . . . . . . . . . . . . . . . . . . . . . Explosions 930 | . . . 275 500 . . . . . . . 155 . . . . . . . . . . Melee 11253 | . . . . . . 1316 1465 128 152 143 653 1237 1479 . . . . 711 235 . 1019 2715 Ramming 38 | . . . . 31 . . . . . . . . . . . . . . . . . 7 Kinetic 2352 | 23 181 322 1258 162 . . 406 . . . . . . . . . . . . . . . Thermal 221 | 52 . . . . . . 169 . . . . . . . . . . . . . . . Explosive 930 | . . . 275 500 . . . . . . . 155 . . . . . . . . . . Electromagnetic . | . . . . . . . . . . . . . . . . . . . . . . . Impact . | . . . . . . . . . . . . . . . . . . . . . . . Slashing 5735 | . . . . . . 1316 1465 128 152 143 39 775 1006 . . . . 711 . . . . Piercing 3304 | . . . . . . . . . . . 614 462 473 . . . . . 235 . 1019 501 Entropic 2214 | . . . . . . . . . . . . . . . . . . . . . . 2214 Highest Corruption 28 | . 3 3 . 5 5 5 1 . . . . . . . . . . 1 . 1 . 28 Average Corruption 3 | . 2 3 . 5 5 5 1 . . . . . . . . . . 1 . 1 . 17 Corruption Purged . | . . . . . . . . . . . . . . . . . . . . . . . Effects 48 | . 4 10 . 5 11 9 3 . . . . . . . . . . . . . . 6 Message Errors 17 | . 1 3 . 1 6 4 2 . . . . . . . . . . . . . . . Matter Fused 13 | . 2 4 . 2 3 1 . . . . . . . . . . . . . . . 1 Heat Flow Errors 4 | . . 1 . . . 1 . . . . . . . . . . . . . . . 2 Energy Discharges 2 | . 1 . . . 1 . . . . . . . . . . . . . . . . . Parts Rejected 1 | . . . . . . . . . . . . . . . . . . . . . . 1 Data Loss (minor) 5 | . . 2 . . 1 1 1 . . . . . . . . . . . . . . . Data Loss (major) 2 | . . . . 1 . 1 . . . . . . . . . . . . . . . . Misfires 2 | . . . . 1 . 1 . . . . . . . . . . . . . . . . Misdirections 2 | . . . . . . . . . . . . . . . . . . . . . . 2 Overload Shots 3 | . . . . . . . . . . . . . 3 . . . . . . . . . Effects 1 | . . . . . . . . . . . . . 1 . . . . . . . . . Meltdown 1 | . . . . . . . . . . . . . 1 . . . . . . . . . Overflow Damage 1380 | . . . . 77 . 363 348 11 . . . 140 400 . . . . 22 . . 12 7 Projectiles . | . . . . . . . . . . . . . . . . . . . . . . . Explosions 77 | . . . . 77 . . . . . . . . . . . . . . . . . . Melee 1303 | . . . . . . 363 348 11 . . . 140 400 . . . . 22 . . 12 7 Knockbacks 1 | . . . . 1 . . . . . . . . . . . . . . . . . . Impact 1 | . . . . 1 . . . . . . . . . . . . . . . . . . Kinetic . | . . . . . . . . . . . . . . . . . . . . . . . Secondary . | . . . . . . . . . . . . . . . . . . . . . . . Self-Inflicted Damage 75 | . . . 57 15 . . . . . . . . . . . . . . . . . 3 Shots 2 | . . . 2 . . . . . . . . . . . . . . . . . . . Rammed 5 | . . . . 1 . . . . . . . . . . . . . . . . . 4 Targets Rammed 5 | . . . . 1 . . . . . . . . . . . . . . . . . 4 Kicked . | . . . . . . . . . . . . . . . . . . . . . . . Crushed . | . . . . . . . . . . . . . . . . . . . . . . . Highest Temperature 308 | 40 9 273 6 . . 81 54 182 . . 183 188 302 274 60 54 260 234 308 78 196 146 Average Temperature 46 | 21 8 53 3 . . 36 14 75 . . 150 75 45 86 14 15 54 41 106 43 85 62 Received Heat Transfer 998 | . 51 183 315 . . 54 72 27 . . . 62 . . . . . . . . 36 198 Siege Activations . | . . . . . . . . . . . . . . . . . . . . . . . Robots Corrupted . | . . . . . . . . . . . . . . . . . . . . . . . Combat Hostiles . | . . . . . . . . . . . . . . . . . . . . . . . Parts Fried . | . . . . . . . . . . . . . . . . . . . . . . . Impact Corruptions . | . . . . . . . . . . . . . . . . . . . . . . . Robots Melted . | . . . . . . . . . . . . . . . . . . . . . . . Combat Hostiles . | . . . . . . . . . . . . . . . . . . . . . . . Parts Melted 1 | . . . . . . . 1 . . . . . . . . . . . . . . . Heat Transferred 495 | 125 . . . . . . 370 . . . . . . . . . . . . . . . Parts Sabotaged . | . . . . . . . . . . . . . . . . . . . . . . . Parts Stolen . | . . . . . . . . . . . . . . . . . . . . . . . Parts Stripped . | . . . . . . . . . . . . . . . . . . . . . . . Power Chain Reactions . | . . . . . . . . . . . . . . . . . . . . . . . Missiles Intercepted . | . . . . . . . . . . . . . . . . . . . . . . . Alert | -11 -10 -10 -9 -9 -9 -8 -8 -7 -7 -7 -6 -6 -5 -5 -5 -5 -4 -4 -3 -2 -1 -1 ------- Run | Scr Mat Min Mat Min Exi Min Mat Fac Was Fac Fac Ext Fac Upp Upp War Pro Fac Res Res Acc Com Peak Influence 568 | 10 171 111 448 291 . 85 203 103 29 215 245 215 568 . . . . 209 116 228 154 243 Initial 130 | . 6 66 1 96 . . 33 44 3 . 4 127 . . . . . 9 1 73 130 38 Average 92 | 5 86 65 206 235 . 62 84 50 5 84 67 59 170 . . . . 74 36 132 77 53 Maximum Alert Level 2 | . . . 2 1 . . 1 . . 1 1 1 2 . . . . 1 . 1 . 1 Low Security (%) 87 | 100 100 100 38 2 . 100 98 100 100 75 96 98 74 . . . . 96 100 91 100 96 Level 1 9 | . . . 55 97 . . 1 . . 24 3 1 . . . . . 3 . 8 . 3 Level 2 2 | . . . 5 . . . . . . . . . 25 . . . . . . . . . Level 3 . | . . . . . . . . . . . . . . . . . . . . . . . Level 4 . | . . . . . . . . . . . . . . . . . . . . . . . Level 5 . | . . . . . . . . . . . . . . . . . . . . . . . High Security . | . . . . . . . . . . . . . . . . . . . . . . . Max Security . | . . . . . . . . . . . . . . . . . . . . . . . Squads Dispatched 28 | . 1 . 1 1 . . . 1 . 3 . 1 6 . . . . 2 2 . 4 6 Investigation 10 | . 1 . 1 . . . . 1 . 3 . 1 1 . . . . . . . 1 1 Extermination 7 | . . . . . . . . . . . . . 3 . . . . 1 1 . 1 1 Reinforcement 9 | . . . . . . . . . . . . . 1 . . . . 1 1 . 2 4 Assault 2 | . . . . 1 . . . . . . . . 1 . . . . . . . . . Garrison . | . . . . . . . . . . . . . . . . . . . . . . . Intercept . | . . . . . . . . . . . . . . . . . . . . . . . Construction Impeded . | . . . . . . . . . . . . . . . . . . . . . . . Haulers Reinforced 3 | . . . . . . . . . . . . . . . . . . 1 . . 2 . Active Scanning Responses . | . . . . . . . . . . . . . . . . . . . . . . . Cargo Convoy Interrupts . | . . . . . . . . . . . . . . . . . . . . . . . Stealth | -11 -10 -10 -9 -9 -9 -8 -8 -7 -7 -7 -6 -6 -5 -5 -5 -5 -4 -4 -3 -2 -1 -1 --------- Run | Scr Mat Min Mat Min Exi Min Mat Fac Was Fac Fac Ext Fac Upp Upp War Pro Fac Res Res Acc Com Distress Signals 15 | . . . 1 . . . 2 . . 2 1 . . . . . . 3 2 2 . 2 Communications Jammed . | . . . . . . . . . . . . . . . . . . . . . . . Distress Signals . | . . . . . . . . . . . . . . . . . . . . . . . Times Spotted 229 | . 8 2 18 9 . 3 18 5 5 . 11 15 22 1 . . 2 18 21 16 20 35 Peak Tracking Total 17 | . 4 2 5 4 . 3 4 3 3 . 6 8 8 3 . . 2 10 17 7 14 16 Tactical Retreats 26 | . . . . . . . 2 . 1 . 2 1 2 2 . . 1 6 . 1 2 6 Traps | -11 -10 -10 -9 -9 -9 -8 -8 -7 -7 -7 -6 -6 -5 -5 -5 -5 -4 -4 -3 -2 -1 -1 ------- Run | Scr Mat Min Mat Min Exi Min Mat Fac Was Fac Fac Ext Fac Upp Upp War Pro Fac Res Res Acc Com Traps Triggered 15 | . 3 . 1 . . . 1 5 . 1 . 3 1 . . . . . . . . . Indirectly . | . . . . . . . . . . . . . . . . . . . . . . . Trap Hack Attempts . | . . . . . . . . . . . . . . . . . . . . . . . Triggered . | . . . . . . . . . . . . . . . . . . . . . . . Disarmed . | . . . . . . . . . . . . . . . . . . . . . . . Reprogrammed . | . . . . . . . . . . . . . . . . . . . . . . . Reused . | . . . . . . . . . . . . . . . . . . . . . . . Traps Extracted . | . . . . . . . . . . . . . . . . . . . . . . . Installed . | . . . . . . . . . . . . . . . . . . . . . . . Triggered 11 | . . . . . . . . . . . . . . . . 8 3 . . . . . Machines | -11 -10 -10 -9 -9 -9 -8 -8 -7 -7 -7 -6 -6 -5 -5 -5 -5 -4 -4 -3 -2 -1 -1 ---------- Run | Scr Mat Min Mat Min Exi Min Mat Fac Was Fac Fac Ext Fac Upp Upp War Pro Fac Res Res Acc Com Machines Disabled 10 | . . . 2 . . . 1 . . . . 2 1 . . 1 . . 1 2 . . Max in Single Turn 2 | . . . 2 . . . 1 . . . . 2 1 . . 1 . . 1 1 . . Garrison Access 7 | . . . . . . . . . . 2 2 . 2 . . . . 1 . . . . Energy Cycler 1 | . . . . . . . . . . . . 1 . . . . . . . . . . Machines Sabotaged . | . . . . . . . . . . . . . . . . . . . . . . . Garrisons Compromised . | . . . . . . . . . . . . . . . . . . . . . . . Overloaded Fab Kills . | . . . . . . . . . . . . . . . . . . . . . . . Fab Network Shutdowns 1 | . . . . . . . . . . . . . 1 . . . . . . . . . Hacking | -11 -10 -10 -9 -9 -9 -8 -8 -7 -7 -7 -6 -6 -5 -5 -5 -5 -4 -4 -3 -2 -1 -1 --------- Run | Scr Mat Min Mat Min Exi Min Mat Fac Was Fac Fac Ext Fac Upp Upp War Pro Fac Res Res Acc Com Machines Accessed 114 | . 5 . 2 . 2 . 6 6 . 15 9 11 22 . . 2 . 6 4 8 6 10 Terminals 75 | . 3 . 2 . . . 5 4 . 5 5 10 13 . . . . 3 2 8 6 9 Fabricators 6 | . . . . . . . . 2 . 2 1 . 1 . . . . . . . . . Repair Stations 5 | . . . . . . . . . . 2 . . 1 . . . . 1 . . . 1 Recycling Units 11 | . 2 . . . . . 1 . . 2 1 1 3 . . . . . 1 . . . Scanalyzers 6 | . . . . . . . . . . 2 . . 2 . . . . 1 1 . . . Garrison Access 7 | . . . . . . . . . . 2 2 . 2 . . . . 1 . . . . Total Hacks 413 | . 13 . 9 . 3 . 23 20 . 42 24 21 72 . . 2 . 33 11 53 28 59 Successful 304 | . 5 . 6 . 3 . 16 14 . 39 20 13 59 . . 2 . 24 9 38 22 34 Failed 108 | . 8 . 3 . . . 7 6 . 3 4 8 12 . . . . 9 2 15 6 25 Catastrophic 7 | . . . . . . . . 1 . . . 1 . . . . . . 1 3 . 1 Database Lockouts 1 | . . . . . . . . . . . . . 1 . . . . . . . . . Manual 208 | . 9 . 5 . 1 . 13 12 . 14 13 3 33 . . . . 13 6 37 18 31 Terminals 290 | . 6 . 9 . . . 21 11 . 13 14 18 43 . . . . 22 4 53 28 48 Fabricators 29 | . . . . . . . . 9 . 9 2 . 9 . . . . . . . . . Repair Stations 19 | . . . . . . . . . . 4 . . 2 . . . . 2 . . . 11 Recycling Units 36 | . 7 . . . . . 2 . . 4 6 3 10 . . . . . 4 . . . Scanalyzers 27 | . . . . . . . . . . 10 . . 6 . . . . 8 3 . . . Garrison Access 7 | . . . . . . . . . . 2 2 . 2 . . . . 1 . . . . Terminal Hacks 151 | . . . 3 . 3 . 11 6 . 8 5 10 22 . . 2 . 10 2 28 17 24 Record 2 | . . . . . 2 . . . . . . . . . . . . . . . . . Part Schematic 13 | . . . . . . . . 1 . . 1 . 5 . . . . 1 . 5 . . Robot Analysis 4 | . . . . . . . . . . . 1 . 1 . . . . . . . . 2 Prototype ID Bank 15 | . . . 1 . . . 2 1 . 1 . 1 3 . . . . . . 2 1 3 Open Door 10 | . . . . . . . . . . . . 5 . . . 2 . . . . 3 . Level Access Points 6 | . . . . . . . 1 . . 1 . . 1 . . . . 1 1 1 . . Branch Access Points 9 | . . . 1 . . . 2 1 . 1 1 . 1 . . . . . . 1 1 . Emergency Access Points 4 | . . . . . . . . . . . . . . . . . . 1 . 3 . . Machine Index 4 | . . . . . . . . . . 1 1 . 1 . . . . . . . . 1 Terminal Index 8 | . . . . . . . 2 1 . 1 1 1 . . . . . . 1 . 1 . Fabricator Index 2 | . . . . . . . . . . . . . . . . . . . . 1 1 . Repair Station Index 2 | . . . . . . . . . . . . . . . . . . . . 1 1 . Recycling Unit Index 1 | . . . . . . . . . . . . . . . . . . . . 1 . . Unreport Threat 14 | . . . . . . . . . . . . 1 2 . . . . 3 . 2 4 2 Locate Traps 10 | . . . . . . . 2 . . . . 1 1 . . . . 1 . 1 . 4 Dispatch Records 1 | . . . . . . . . . . . . . . . . . . . . . . 1 Security Status 2 | . . . . . . . . . . . . . . . . . . . . . . 2 Surveillance Status 1 | . . . . . . . . . . . . . . . . . . . . . . 1 Patrol Status 1 | . . . . . . . . . . . . . . . . . . . . . . 1 Reinforcement Status 1 | . . . . . . . . . . . . . . . . . . . . . . 1 Garrison Status 1 | . . . . . . . . . . . . . . . . . . . . . . 1 Recall Extermination 4 | . . . . . . . . . . . . . 2 . . . . . . 1 1 . Recall Assault 1 | . . . . . . . . . . . . . . . . . . . . 1 . . Hauler Manifests 8 | . . . 1 . . . 1 1 . . . . 2 . . . . 1 . 1 1 . Registered Components 6 | . . . . . . . . 1 . 1 . . 1 . . . . . . 1 1 1 Registered Prototypes 6 | . . . . . . . . . . 1 . . 1 . . . . 1 . 1 1 1 Zone Layout 13 | . . . . . . . 1 . . 1 . 1 1 . . . . 1 . 5 1 2 EX-Prototype ID Bank 1 | . . . . . 1 . . . . . . . . . . . . . . . . . Disengage Seal 1 | . . . . . . . . . . . . . . . . . . . . . . 1 Fabricator Hacks 15 | . . . . . . . . 2 . 4 2 . 7 . . . . . . . . . Network Status 1 | . . . . . . . . . . . . . 1 . . . . . . . . . Load Schematic 6 | . . . . . . . . 1 . 1 1 . 3 . . . . . . . . . Build 8 | . . . . . . . . 1 . 3 1 . 3 . . . . . . . . . Repair Station Hacks 17 | . . . . . . . . . . 4 . . 2 . . . . 2 . . . 9 Scan Component 9 | . . . . . . . . . . 2 . . 1 . . . . 1 . . . 5 Repair 8 | . . . . . . . . . . 2 . . 1 . . . . 1 . . . 4 Recycling Unit Hacks 12 | . 1 . . . . . 1 . . 2 2 2 3 . . . . . 1 . . . Retrieve Matter 1 | . . . . . . . . . . . 1 . . . . . . . . . . . Retrieve Components 11 | . 1 . . . . . 1 . . 2 1 2 3 . . . . . 1 . . . Scanalyzer 26 | . . . . . . . . . . 9 . . 6 . . . . 8 3 . . . Insert Component 13 | . . . . . . . . . . 5 . . 3 . . . . 4 1 . . . Analyze 13 | . . . . . . . . . . 4 . . 3 . . . . 4 2 . . . Garrison Access Hacks 7 | . . . . . . . . . . 2 2 . 2 . . . . 1 . . . . Seal Access 7 | . . . . . . . . . . 2 2 . 2 . . . . 1 . . . . Unauthorized Hacks 76 | . 4 . 3 . . . 4 6 . 10 9 1 17 . . . . 3 3 10 5 1 Terminals 46 | . 1 . 3 . . . 3 2 . 4 5 1 8 . . . . 3 . 10 5 1 Assimilate 9 | . . . . . . . . . . . 1 . 3 . . . . 1 . 2 2 . Botnet 31 | . 1 . 2 . . . 2 2 . 4 4 1 5 . . . . 2 . 4 3 1 Disrupt 4 | . . . . . . . . . . . . . . . . . . . . 4 . . Operators 2 | . . . 1 . . . 1 . . . . . . . . . . . . . . . Fabricators 10 | . . . . . . . . 4 . 4 . . 2 . . . . . . . . . Report 2 | . . . . . . . . 1 . 1 . . . . . . . . . . . . Prioritize 2 | . . . . . . . . . . 1 . . 1 . . . . . . . . . Siphon 4 | . . . . . . . . 2 . 1 . . 1 . . . . . . . . . Haulers 2 | . . . . . . . . 1 . 1 . . . . . . . . . . . . Repair Stations . | . . . . . . . . . . . . . . . . . . . . . . . Recycling Units 20 | . 3 . . . . . 1 . . 2 4 . 7 . . . . . 3 . . . Monitor 5 | . 1 . . . . . . . . . 1 . 2 . . . . . 1 . . . Reject 8 | . 1 . . . . . 1 . . 2 1 . 2 . . . . . 1 . . . Recyclers 5 | . 1 . . . . . . . . . 1 . 2 . . . . . 1 . . . Mask 2 | . . . . . . . . . . . 1 . 1 . . . . . . . . . Scanalyzers . | . . . . . . . . . . . . . . . . . . . . . . . Garrison Access . | . . . . . . . . . . . . . . . . . . . . . . . Data Cores Recovered . | . . . . . . . . . . . . . . . . . . . . . . . Used . | . . . . . . . . . . . . . . . . . . . . . . . Hacking Detections 85 | . 5 . 2 . . . 5 6 . 11 6 6 17 . . . . 3 4 8 3 9 Full Trace Events 3 | . . . . . . . . 1 . 1 . 1 . . . . . . . . . . Feedback Events 1 | . . . . . . . . 1 . . . . . . . . . . . . . . Hackware Fried 1 | . . . . . . . . 1 . . . . . . . . . . . . . . Feedback Blocked . | . . . . . . . . . . . . . . . . . . . . . . . Robot Schematics Acquired . | . . . . . . . . . . . . . . . . . . . . . . . Robots Built . | . . . . . . . . . . . . . . . . . . . . . . . Matter . | . . . . . . . . . . . . . . . . . . . . . . . Time . | . . . . . . . . . . . . . . . . . . . . . . . Total Robot Build Rating . | . . . . . . . . . . . . . . . . . . . . . . . Part Schematics Acquired 24 | . . . . . . . . 1 . 4 1 . 8 . . . . 4 1 5 . . Parts Built 8 | . . . . . . . . 1 . 3 1 . 3 . . . . . . . . . Matter 1722 | . . . . . . . . 189 . 567 252 . 714 . . . . . . . . . Time 574 | . . . . . . . . 44 . 133 67 . 330 . . . . . . . . . Total Part Build Rating 38 | . . . . . . . . 4 . 12 4 . 18 . . . . . . . . . Parts Repaired 8 | . . . . . . . . . . 2 . . 1 . . . . 1 . . . 4 Time 235 | . . . . . . . . . . 42 . . 23 . . . . 35 . . . 135 Parts Recycled . | . . . . . . . . . . . . . . . . . . . . . . . Recycled Matter . | . . . . . . . . . . . . . . . . . . . . . . . Retrieved Matter . | . . . . . . . . . . . . . . . . . . . . . . . Retrieved Components 34 | . 1 . . . . . 9 . . 4 . 11 7 . . . . . 2 . . . Parts Scanalyzed 11 | . . . . . . . . . . 4 . . 3 . . . . 3 1 . . . Part Schematics Acquired 11 | . . . . . . . . . . 4 . . 3 . . . . 3 1 . . . Parts Damaged 1 | . . . . . . . . . . 1 . . . . . . . . . . . . Bothacking | -11 -10 -10 -9 -9 -9 -8 -8 -7 -7 -7 -6 -6 -5 -5 -5 -5 -4 -4 -3 -2 -1 -1 ------------ Run | Scr Mat Min Mat Min Exi Min Mat Fac Was Fac Fac Ext Fac Upp Upp War Pro Fac Res Res Acc Com Used RIF Installer . | . . . . . . . . . . . . . . . . . . . . . . . Robots Hacked . | . . . . . . . . . . . . . . . . . . . . . . . Non-combat . | . . . . . . . . . . . . . . . . . . . . . . . Combat . | . . . . . . . . . . . . . . . . . . . . . . . Robot Hacks Applied . | . . . . . . . . . . . . . . . . . . . . . . . Relay Couplers Released . | . . . . . . . . . . . . . . . . . . . . . . . Robots Rewired 3 | . . . . . . . . . . . . 3 . . . . . . . . . . Allies Hacked . | . . . . . . . . . . . . . . . . . . . . . . . Hacks Repelled . | . . . . . . . . . . . . . . . . . . . . . . . Allies | -11 -10 -10 -9 -9 -9 -8 -8 -7 -7 -7 -6 -6 -5 -5 -5 -5 -4 -4 -3 -2 -1 -1 -------- Run | Scr Mat Min Mat Min Exi Min Mat Fac Was Fac Fac Ext Fac Upp Upp War Pro Fac Res Res Acc Com Total Allies 44 | . . . . 1 . . . 3 23 . 1 9 3 . . . . 1 . 1 2 . Largest Group 23 | . . . . 1 1 1 . 3 23 10 1 6 2 . . . . 1 . 1 1 . Highest-Rated Group 601 | . . . . 31 31 31 . 93 601 289 26 189 52 . . . . 10 . 45 45 . Highest-Rated Ally 45 | . . . . 31 31 31 . 31 35 32 26 37 26 . . . . 10 . 45 45 . Total Orders 4 | . . . . . . . . . . . . . 4 . . . . . . . . . STAY 2 | . . . . . . . . . . . . . 2 . . . . . . . . . FOLLOW 2 | . . . . . . . . . . . . . 2 . . . . . . . . . Ally Attacks 285 | . . . . 9 . 1 . . 142 79 . 54 . . . . . . . . . . Total Damage 6935 | . . . . 146 . . . . 4500 1257 . 1032 . . . . . . . . . . Kills 29 | . . . . 3 . . . . 10 12 . 4 . . . . . . . . . . Allies Corrupted . | . . . . . . . . . . . . . . . . . . . . . . . Allies Melted 1 | . . . . . . . . . . . . 1 . . . . . . . . . . Intel | -11 -10 -10 -9 -9 -9 -8 -8 -7 -7 -7 -6 -6 -5 -5 -5 -5 -4 -4 -3 -2 -1 -1 ------- Run | Scr Mat Min Mat Min Exi Min Mat Fac Was Fac Fac Ext Fac Upp Upp War Pro Fac Res Res Acc Com Robot Analysis Total 4 | . . . . . . . . . . . 1 . 1 . . . . . . . . 2 Derelict Logs Recovered 8 | . . 1 . 3 . . . . . . . . . . 2 . 2 . . . . . Drone Launches . | . . . . . . . . . . . . . . . . . . . . . . . Drone Recoveries . | . . . . . . . . . . . . . . . . . . . . . . . Exploration | -11 -10 -10 -9 -9 -9 -8 -8 -7 -7 -7 -6 -6 -5 -5 -5 -5 -4 -4 -3 -2 -1 -1 ------------- Run | Scr Mat Min Mat Min Exi Min Mat Fac Was Fac Fac Ext Fac Upp Upp War Pro Fac Res Res Acc Com Turns Passed 10173 | 42 326 629 497 336 441 364 1185 628 143 627 357 934 933 249 170 151 162 636 359 140 323 541 Spaces Moved 15095 | 16 241 510 238 249 363 220 712 993 270 781 1050 1248 1891 459 425 465 476 1652 645 503 720 968 Core . | . . . . . . . . . . . . . . . . . . . . . . . Treads . | . . . . . . . . . . . . . . . . . . . . . . . Legs . | . . . . . . . . . . . . . . . . . . . . . . . Wheels 2549 | 16 241 510 238 249 363 220 712 . . . . . . . . . . . . . . . Hover 605 | . . . . . . . . 605 . . . . . . . . . . . . . . Flight 11941 | . . . . . . . . 388 270 781 1050 1248 1891 459 425 465 476 1652 645 503 720 968 Fastest Speed 6 | 80 80 110 110 120 120 120 120 26 26 26 11 11 6 6 6 6 6 6 6 6 12 12 Average Speed 38 | 80 104 110 117 120 120 141 126 33 26 26 22 22 20 22 22 21 19 19 18 17 18 24 Slowest Speed 160 | 80 110 110 125 120 120 160 160 102 26 26 23 23 23 23 23 87 20 21 21 21 20 89 Overloaded Moves 920 | . . . . . . . . . . . 19 54 101 22 15 6 20 106 155 129 201 92 Propulsion Burnouts . | . . . . . . . . . . . . . . . . . . . . . . . Robots Hopped 52 | . . . . . . . . . . . . 4 8 1 . . . 15 10 4 7 3 Cave-ins Triggered 1 | . . . . . . . . . . . . . . . . . . . . . . 1 Exploration Rate (%) 44 | 2 54 92 32 51 64 56 49 29 88 23 25 73 40 61 46 58 53 26 22 22 19 38 Regions Visited 22 Branch Regions 10 Pre-discovered Areas 4 | . . . . 1 1 . . . . . . . . . . . 2 . . . . . Known Exits Taken 10 | . . . 1 . . . 1 . . 1 1 . 1 . . . 1 1 1 1 1 . Unknown Exits Taken 10 | 1 1 1 . 1 1 1 . . . . . 1 . 1 1 1 . . . . . . Scrap Searched 9 | . . 1 . 1 . 1 . . . . . . . 3 . . 3 . . . . . Spaces Dug 154 | . . . . . . . 20 14 . 8 12 30 10 2 1 1 5 18 13 1 6 13 Terrain Destroyed 294 | . . . 30 39 . . 60 14 . 8 12 61 10 2 1 1 5 18 13 1 6 13 Melee 127 | . . . . . . . 20 14 . 8 12 4 9 2 1 1 5 18 13 1 6 13 Projectile 7 | . . . 6 . . . . . . . . . 1 . . . . . . . . . AOE 160 | . . . 24 39 . . 40 . . . . 57 . . . . . . . . . . Terrain Rammed . | . . . . . . . . . . . . . . . . . . . . . . . Walls Destroyed . | . . . . . . . . . . . . . . . . . . . . . . . Machines Disabled . | . . . . . . . . . . . . . . . . . . . . . . . Actions | -11 -10 -10 -9 -9 -9 -8 -8 -7 -7 -7 -6 -6 -5 -5 -5 -5 -4 -4 -3 -2 -1 -1 --------- Run | Scr Mat Min Mat Min Exi Min Mat Fac Was Fac Fac Ext Fac Upp Upp War Pro Fac Res Res Acc Com Total 18744 | 35 292 539 352 272 369 257 910 1278 342 1195 1132 1862 2383 600 497 514 537 1918 843 542 858 1217 Wait 2631 | . 9 5 11 8 1 8 77 197 62 374 38 518 392 131 70 9 50 231 165 18 83 174 Move 14974 | 15 240 509 237 248 362 219 711 993 269 780 1049 1239 1875 456 424 464 475 1624 625 494 705 961 Hop 47 | . . . . . . . . . . . . 4 7 1 . . . 12 9 4 7 3 Pick Up 136 | 6 18 1 16 2 1 4 15 12 1 3 3 5 22 . . 6 1 3 5 4 3 5 Fast Attach 86 | 1 . 1 3 . 2 3 7 10 3 5 7 1 8 . . 12 . 3 6 4 4 6 Attach 62 | 2 . 1 3 1 . 1 3 9 1 . 1 2 5 1 . 1 . 4 4 4 9 10 Detach 21 | . . . . . . . . 1 1 . 1 . 1 2 . 1 . 1 1 2 7 3 Swap 96 | 1 4 . 5 2 . . 9 1 . . 2 10 14 7 2 1 5 9 4 4 12 4 Drop 178 | 4 7 1 18 1 3 5 21 23 4 6 8 5 25 . . 18 1 2 9 5 6 6 Fire 152 | 6 14 21 59 9 . . 31 . . . . 8 4 . . . . . . . . . Melee 269 | . . . . . . 17 36 16 1 9 23 18 30 2 1 2 5 29 15 3 22 40 Ram 5 | . . . . 1 . . . . . . . . . . . . . . . . . 4 Kick . | . . . . . . . . . . . . . . . . . . . . . . . Crush . | . . . . . . . . . . . . . . . . . . . . . . . Escape Stasis 76 | . . . . . . . . 16 . 18 . 41 . . . . . . . . . 1 Rewire 11 | . . . . . . . . . . . . 11 . . . . . . . . . . Trap . | . . . . . . . . . . . . . . . . . . . . . . . Miscellaneous . | . . . . . . . . . . . . . . . . . . . . . . . Route ------- -11/Scrapyard -10/Materials (discovered 2 exits: *Mat / [*Min]) -10/Mines -9/Materials (discovered 2 exits: *Min x2) -9/Mines (discovered 2 exits: *Mat / *Exi) -9/Exiles (discovered 2 exits: [*Min x2]) -8/Mines -8/Materials (discovered 5 exits: *Fac x3 / *Sto x2) -7/Factory (discovered 2 exits: *Low x2) -7/Waste -7/Factory (discovered 6 exits: *Fac x4 / Low x2) -6/Factory (discovered 4 exits: Low x2 / *Ext x2) -6/Extension (discovered 2 exits: *Fac / [*Cet]) -5/Factory (discovered 6 exits: *Fac x4 / *Upp x2) -5/Upper Caves -5/Upper Caves (discovered 2 exits: *Fac / *War) -5/Warlord -4/Proximity Caves -4/Factory (discovered 4 exits: *Res x4) -3/Research (discovered 3 exits: *Res x3) -2/Research (discovered 5 exits: *Acc x3 / Tes x2) -1/Access -1/Command History --------- Turn | Location | Event 14 | -11/Scrapyard | Discovered new exit (range 2) 43 | -11/Scrapyard | Entered Materials 284 | -10/Materials | Discovered new exit (range 16) 318 | -10/Materials | Build established: Mutant 330 | -10/Materials | Discovered new exit (range 11) 369 | -10/Materials | Entered Mines 491 | -10/Mines | A weapon hastily lodged in a ceiling crevice suddenly fell to the ground 713 | -10/Mines | Discovered new exit (range 5) 802 | -10/Mines | Learned Materials stockpile data 998 | -10/Mines | Entered Materials 998 | -9/Materials | Evolved 2 slots: Utility x2 1118 | -9/Materials | Identified exit to Mines 1347 | -9/Materials | Build established: Scavenger-Mutant 1495 | -9/Materials | Entered Mines 1518 | -9/Mines | Learned Materials stockpile data 1595 | -9/Mines | Received a Rocket Launcher from a helpful Derelict 1663 | -9/Mines | Met a Derelict testing a Signal Generator 1725 | -9/Mines | Discovered new exit (range 9) 1811 | -9/Mines | Learned location of 1 exit from Materials 1815 | -9/Mines | Deemed a non-threat by the Exiles lab entrance 1817 | -9/Mines | Discovered new exit (range 5) 1831 | -9/Mines | Entered Exiles 1831 | -9/Exiles | Accompanied by 1 ally 1848 | -9/Exiles | Discovered new exit (range 15) 1861 | -9/Exiles | Met 8R-AWN 1883 | -9/Exiles | Met EX-HEX 1914 | -9/Exiles | Met EX-BIN 1928 | -9/Exiles | Aligned with FarCom system 1930 | -9/Exiles | Given EX-Vault access code 1962 | -9/Exiles | Opened EX-Vault 1970 | -9/Exiles | Found Longsword +1 1998 | -9/Exiles | Warned to stay clear of 0b10 Research branches 2032 | -9/Exiles | Met EX-DEC 2037 | -9/Exiles | Learned location of Zion (-6) 2081 | -9/Exiles | Discovered new exit (range 10) 2143 | -9/Exiles | Build established: Mutant 2272 | -9/Exiles | Left Exiles lab with Longsword +1 2272 | -9/Exiles | Entered Mines 2272 | -8/Mines | Accompanied by 1 ally 2616 | -8/Mines | Discovered new exit (range 14) 2624 | -8/Mines | Build established: Scavenger-Mutant 2636 | -8/Mines | Entered Materials 2636 | -8/Materials | Evolved 2 slots: Utility x2 2637 | -8/Materials | Identified exit to Factory 2864 | -8/Materials | Discovered new exit (range 10) 2879 | -8/Materials | Identified exit to Storage 3420 | -8/Materials | Build established: Hacker-Mutant 3821 | -8/Materials | Entered Factory 3821 | -7/Factory | Evolved 2 slots: Propulsion x2 4110 | -7/Factory | Allied Derelicts emerged from ambush trap array 4117 | -7/Factory | Identified exit to Lower Caves 4329 | -7/Factory | Hacking Suite fried by hacking feedback 4373 | -7/Factory | Fabricated Cld. VTOL Module (x1) 4407 | -7/Factory | Build established: Hacker-Sprinter 4449 | -7/Factory | Manually triggered Chute Trap 4449 | -7/Factory | Sucked down chute 4449 | -7/Factory | Entered Waste 4449 | -7/Waste | Met up with 3 allies sucked down the chute earlier 4450 | -7/Waste | Met a frightened Derelict 4458 | -7/Waste | Spotted C-40 Crusher 4461 | -7/Waste | Spotted C-40 Crusher 4462 | -7/Waste | Spotted C-40 Crusher 4463 | -7/Waste | Spotted C-40 Crusher 4467 | -7/Waste | Warlord forces began an assault 4474 | -7/Waste | Allies destroyed C-40 Crusher 4476 | -7/Waste | Allies destroyed C-40 Crusher 4478 | -7/Waste | Spotted C-40 Crusher 4499 | -7/Waste | Spotted C-40 Crusher 4505 | -7/Waste | Allies destroyed C-40 Crusher 4506 | -7/Waste | Discovered new exit (range 16) 4570 | -7/Waste | Allies destroyed C-40 Crusher 4592 | -7/Waste | Entered Factory 4592 | -7/Factory | Accompanied by 10 allies 4622 | -7/Factory | Repaired Lgt. Nuclear Core 4649 | -7/Factory | Identified exit to Factory 4904 | -7/Factory | Repaired Broken Mic. Nuclear Core 5135 | -7/Factory | Fabricated Cld. VTOL Module (x1) 5170 | -7/Factory | Fabricated Cld. VTOL Module (x1) 5203 | -7/Factory | Fabricated Cld. VTOL Module (x1) 5219 | -7/Factory | Entered another Factory area 5219 | -6/Factory | Evolved 2 slots: Propulsion x1, Utility x1 5414 | -6/Factory | Identified exit to Lower Caves 5414 | -6/Factory | Identified exit to Extension 5554 | -6/Factory | Fabricated Cld. VTOL Module? 5576 | -6/Factory | Entered Extension 5614 | -6/Extension | Rescued a captive Derelict 5614 | -6/Extension | Rescued a captive Derelict 5663 | -6/Extension | Rescued a captive Derelict 5691 | -6/Extension | Spotted B-75 Beast 5692 | -6/Extension | Spotted B-75 Beast 5709 | -6/Extension | Rescued a captive Derelict 5709 | -6/Extension | Rescued a captive Derelict 5726 | -6/Extension | Rescued a captive Derelict 6245 | -6/Extension | Energy Cycler disabled 6509 | -6/Extension | Discovered new exit (range 10) 6510 | -6/Extension | Discovered new exit (range 6) 6510 | -6/Extension | Entered Factory 6510 | -5/Factory | Evolved 2 slots: Propulsion x1, Utility x1 6544 | -5/Factory | Repaired Cld. VTOL Module 6570 | -5/Factory | Discovered new exit (range 8) 6758 | -5/Factory | Identified exit to Upper Caves 6758 | -5/Factory | Central database locked down 6815 | -5/Factory | Discovered new exit (range 15) 6941 | -5/Factory | Build established: Hacker-Scout 7028 | -5/Factory | Identified exit to Factory 7129 | -5/Factory | Fabricated Exp. Propulsion Shielding (x1) 7207 | -5/Factory | Fabricated Exp. Utility Shielding (x1) 7209 | -5/Factory | Local fabrication network quarantined 7309 | -5/Factory | Fabricated Exp. Power Amplifier (x1) 7410 | -5/Factory | First assault squad dispatched 7443 | -5/Factory | Entered Upper Caves 7472 | -5/Upper Caves | Encountered a Warlord checkpoint 7655 | -5/Upper Caves | Discovered new exit (range 3) 7680 | -5/Upper Caves | Build established: Hacker-Sprinter 7692 | -5/Upper Caves | Entered another Upper Caves area 7752 | -5/Upper Caves | Discovered exit to Factory (range 16) 7817 | -5/Upper Caves | Learned Factory terminal intel 7817 | -5/Upper Caves | Learned Factory stockpile data 7861 | -5/Upper Caves | Discovered new exit (range 9) 7862 | -5/Upper Caves | Entered Warlord 7913 | -5/Warlord | Visited the Vortex Lab 7914 | -5/Warlord | Found Prototype Piercing Weapon 7916 | -5/Warlord | Found Prototype Piercing Weapon 7918 | -5/Warlord | Found Prototype Launcher 7918 | -5/Warlord | Identified Vortex Catalyst Activator 7921 | -5/Warlord | Found Prototype Energy Cannon 7921 | -5/Warlord | Identified Vortex Driver 7923 | -5/Warlord | Found Prototype Energy Gun 7923 | -5/Warlord | Identified Vortex Rail 7928 | -5/Warlord | Identified Vortex Lance (x2) 7935 | -5/Warlord | Warlord's base attacked by MAIN.C 7941 | -5/Warlord | Met Warlord 7949 | -5/Warlord | Found Prototype Hackware 7960 | -5/Warlord | Found Prototype Device 7960 | -5/Warlord | Identified Exp. Phase Shifter 7965 | -5/Warlord | Found Prototype Device 7965 | -5/Warlord | Identified Exp. Focal Shield 7972 | -5/Warlord | Found Prototype Processor 7972 | -5/Warlord | Identified Exp. Target Analyzer 8008 | -5/Warlord | Opened side exit 8012 | -5/Warlord | Discovered new exit (range 9) 8013 | -5/Warlord | Entered Proximity Caves 8049 | -4/Proximity Caves | Learned location of Quarantine (-3) 8161 | -4/Proximity Caves | Attracted the attention of an 0b10 checkpoint 8172 | -4/Proximity Caves | Discovered exit to Factory (range 14) 8175 | -4/Proximity Caves | Entered Factory 8175 | -4/Factory | Evolved 2 slots: Utility x2 8177 | -4/Factory | Loaded intel: 19 terminal locations 8312 | -4/Factory | Identified System Mapper 8462 | -4/Factory | Build established: Hacker-Scout 8555 | -4/Factory | Identified exit to Research 8695 | -4/Factory | Repaired Cld. VTOL Module? 8811 | -4/Factory | Entered Research 8811 | -3/Research | Evolved 2 slots: Utility x2 8873 | -3/Research | Found Enh. Force Lance 8959 | -3/Research | Found Prototype Launcher 8959 | -3/Research | Identified Tesla Bomb Launcher 9161 | -3/Research | Identified exit to Research 9170 | -3/Research | Entered another Research area 9170 | -2/Research | Warlord forces began assault on 0b10 9170 | -2/Research | Evolved 2 slots: Utility x2 9178 | -2/Research | Identified exit to Access 9194 | -2/Research | Identified exit to Testing 9257 | -2/Research | Spotted B-90 Cyclops 9280 | -2/Research | Research machine network offline 9310 | -2/Research | Entered Access 9310 | -1/Access | Evolved 2 slots: Utility x2 9337 | -1/Access | Identified exit to Command 9633 | -1/Access | Entered Command 9679 | -1/Command | Disengaged cave seal 9755 | -1/Command | Repaired Cld. Field Propulsion Drive 9755 | -1/Command | Welcomed Warlord to Command 9857 | -1/Command | Repaired Cld. Field Propulsion Drive 9894 | -1/Command | Repaired Electron Diverter 9929 | -1/Command | Repaired Diametric Drive 9993 | -1/Command | Spotted B-99 Colossus 10062 | -1/Command | Spotted B-99 Colossus 10078 | -1/Command | Spotted Combat Programmer 10108 | -1/Command | Crushed by falling debris 10109 | -1/Command | System corruption reached 10% 10120 | -1/Command | Met MAIN.C 10123 | -1/Command | 0b10 Conduit disabled 10163 | -1/Command | Core integrity fell below 50% 10173 | -1/Command | Core integrity fell below 20% 10174 | -1/Command | Destroyed by P-80 Master with Gamma Rifle Last Messages --------------- 10167_ P-80 Master resets P-80 Master, system corruption cleaned. 10167_ Penetrated by Slug. 10167_ Electron Diverter destroyed. 10167_ MAIN.C suffers critical hit (Destroy). 10167_ Exp. Target Analyzer destroyed. 10168_ Slug penetrates 0b10 Conduit. 10168_ Enh. Force Lance destroyed. 10168_ Adv. Weight Redist. System destroyed. 10169_ Adv. Armor Integrity Analyzer destroyed. 10170_ Penetrated by Slug. 10171_ Slammed into MAIN.C. 10171_ Slug penetrates H-88 Terminator. 10171_ Slug penetrates Reinforced Barrier. 10172_ Slammed into MAIN.C. 10173_ Electron Diverter permanently disabled. 10173_ Destabilizing: Short circuit. 10173_ Penetrated by Slug. 10174_ Slammed into MAIN.C. 10174_ Penetrated by Slug. 10174_ Slug penetrates Reinforced Barrier. Map ----- +----------------------------------------------------+ | ?????????????????????????????????????????????????? | | ?????????????????????????????????????????????????? | | ?????]???????????????????????????????????????????? | | ?????????????????????????????????????????????????? | | ?????????????????????????????????????????????????? | | ?????????????????????????????????????????????????? | | ?????????????????????????????????????????????????? | | ?????????????????????????????????????????????????? | | ?????????????????????????????????????????????????? | | ?????????????????????????????????????????????????? | | ?????????????????????????????????????????????????? | | ?????????????????????????????????????????????????? | | ???????????????????##################????????????? | | ??????????????????"""" """" #????????????? | | ??????????????#?"?? "" #????????????? | | ??????????????#""""" "" ############## | | ??????????????#""""""""" " / | | ??????????????#" " " /!= | | ??????????????#"" """" !/%= | | ??????????????#"" """" ############## | | ??????????????# " " #????????????? | | ??????????????# " #????????????? | | ??????????????# " MMM ""#????????????? | | ??????????????#"""""""" MMM """""""#????????????? | | ??????????????#"" p MMM """"""""#????????????? | | ??????????????# !h@ """"#????????????? | | ??????????????# phh! #????????????? | | ??????????????# h![! " " " #????????????? | | ??????????????" " """" " #????????????? | | ??????????????" " " " " """" #????????????? | | ??????????????" " " " "????????????????? | | ??????????????# """"""""" "????????????????? | | ??????????????# " """ " """"""???????????????? | | ??????????????# """ " " " ???????????????? | | ??????????????#####?#########?###????????????????? | | ?????????????????????????????????????????????????? | | ?????????????????????????????????????????????????? | | ?????????????????????????????????????????????????? | | ?????????????????????????????????????????????????? | | ""????"""????????????????????????????????????????? | | """???"""????????????????????????????????????????? | | """????R"????????????????????????????????????????? | | ""????"""????????????????????????????????????????? | | ??????""?????????????????????????????????????????? | | ?????????????????????????????????????????????????? | | ?????????????????????????????????????????????????? | | ?????????????????????????????????????????????????? | | ?????????????????????????????????????????????????? | | ?????????????????????????????????????????????????? | | ?????????????????????????????????????????????????? | +----------------------------------------------------+ Best States ------------- Heat Dissipation 173 Energy Generation 33 Energy Capacity 340 Matter Stores 300 Matter Capacity 300 Sight Range 22 Robot Scan Range 15 Terrain Scan Range 24 Terrain Scan Density 60 ECM Strength 2 Power Amplification 40 Additional Mass Support 9 Armor Coverage 600 Propulsion Shielding 90 Utility Shielding 90 Melee Speed Boost 20 Phase Shifting 20 Evasion (%) 98 Target Analysis 10 Core Analysis 8 Armor Integrity Analysis 40 Matter Filtering 50 Offensive Hacking 58 Defensive Hacking 34 Item Schematics ----------------- Cld. VTOL Module | -7/Factory | Hacked Hacking Suite | -7/Factory | Scanalyzed Microactuators | -7/Factory | Scanalyzed Mni. Grenade Launcher | -7/Factory | Scanalyzed Mic. Nuclear Core | -7/Factory | Scanalyzed Exp. Propulsion Shielding | -6/Factory | Hacked Exp. Utility Shielding | -5/Factory | Hacked Imp. Utility Shielding | -5/Factory | Scanalyzed Adv. VSS Leg | -5/Factory | Hacked Adv. System Shield | -5/Factory | Hacked Med. Storage Unit | -5/Factory | Scanalyzed Lgt. Fission Core | -5/Factory | Scanalyzed Exp. Power Amplifier | -5/Factory | Hacked Spectral Analyzer | -5/Factory | Hacked Exp. Phase Shifter | -4/Factory | Scanalyzed Field Propulsion Drive | -4/Factory | Scanalyzed Mak. System Shield | -4/Factory | Scanalyzed Mic. Fission Core | -4/Factory | Hacked Adv. Cooling System | -3/Research | Scanalyzed Femtoactuators | -2/Research | Hacked Exp. Actuator Array | -2/Research | Hacked Exp. Melee Analysis Suite | -2/Research | Hacked Plasma Lance | -2/Research | Hacked Adv. Reaction Control System | -2/Research | Hacked Robot Schematics ------------------ None Fabricated ------------ Cld. VTOL Module | x1 | -7/Factory Cld. VTOL Module | x1 | -7/Factory Cld. VTOL Module | x1 | -7/Factory Cld. VTOL Module | x1 | -7/Factory Cld. VTOL Module | x1 | -6/Factory Exp. Propulsion Shielding | x1 | -5/Factory Exp. Utility Shielding | x1 | -5/Factory Exp. Power Amplifier | x1 | -5/Factory Alien Tech Used ----------------- None Achievements -------------- None Challenges ------------ None Game ------ Seed BladeCloakPit Manual? 0 Play Time 04:35:45 Cumulative 316.7 hours Start 2021.08.28 @ 19:31:33 End 2021.08.29 @ 00:39:31 Sessions 1 Manual Loads 0 Difficulty Rogue Special Mode None Game No. 174 Rogue 174 Adventurer 0 Explorer 0 Win Type - Total 9 Types 6/0/1/2/0/0/0/0/0 Lore% 79 Gallery% 84 Achievement% 65 Wizard Run 0 Options --------- ASCII 0 Keyboard 0 Movement Numpad Keybinds 0 Fullscreen 1 Font 18/SmallcapsGlow Map View 76x50 Tactical HUD 1 Map Filters NONE Filters NONE Steam 1 RUN: 54350a42-ec97-4dc3-b865-05539f2d919e